fUST/lending_fUST_20250423
["ID","MTS","AMOUNT","RATE_DAILY","PERIOD"]
[358659266,1745344240144,-504.59063616,0.00021917,2]
[358659267,1745344240154,-500.0,0.00021917,2]
[358659268,1745344240164,-221.05642372,0.00021917,2]
[358659269,1745344240174,-363.28737962,0.00021917,2]
[358659270,1745344240184,-500.0,0.00021917,2]
[358659271,1745344240193,-531.60881479,0.00021917,2]
[358659272,1745344240203,-500.0,0.00021917,2]
[358659273,1745344240212,-500.0,0.00021917,2]
[358659274,1745344240222,-342.18701394,0.00021917,2]
[358659275,1745344240231,-500.0,0.00021917,2]
[358659276,1745344240378,-500.0,0.00021917,2]
[358659277,1745344240397,-505.33011739,0.00021917,2]
[358659278,1745344240407,-500.0,0.00021917,2]
[358659279,1745344240416,-500.0,0.00021917,2]
[358659280,1745344240427,-500.0,0.00021917,2]
[358659281,1745344240436,-500.0,0.00021917,2]
[358659282,1745344240446,-500.0,0.00021917,2]
[358659283,1745344240456,-500.0,0.00021917,2]
[358659284,1745344240466,-500.0,0.00021917,2]
[358659286,1745344240476,-500.0,0.00021917,2]
[358659288,1745344240487,-500.0,0.00021917,2]
[358659290,1745344240498,-500.0,0.00021917,2]
[358659292,1745344240508,-500.0,0.00021917,2]
[358659294,1745344240519,-500.0,0.00021917,2]
[358659296,1745344240529,-500.0,0.00021917,2]
[358659298,1745344240538,-500.0,0.00021917,2]
[358659299,1745344240548,-627.86,0.00021917,2]
[358659300,1745344240559,-500.0,0.00021917,2]
[358659301,1745344240570,-500.0,0.00021917,2]
[358659302,1745344240579,-500.0,0.00021917,2]
[358659303,1745344240589,-511.76396241,0.00021917,2]
[358659304,1745344240599,-457.02890223,0.00021917,2]
[358659305,1745344240609,-500.0,0.00021917,2]
[358659306,1745344240619,-500.0,0.00021917,2]
[358659307,1745344240629,-500.0,0.00021917,2]
[358659308,1745344240639,-510.65501489,0.00021917,2]
[358659309,1745344240649,-500.0,0.00021917,2]
[358659310,1745344240658,-500.0,0.00021917,2]
[358659311,1745344240668,-500.0,0.00021917,2]
[358659312,1745344240678,-500.0,0.00021917,2]
[358659313,1745344240688,-236.84519714,0.00021917,2]
[358659314,1745344240698,-500.0,0.00021917,2]
[358659315,1745344240708,-511.80561492,0.00021917,2]
[358659316,1745344240718,-500.0,0.00021917,2]
[358659317,1745344240728,-500.0,0.00021917,2]
[358659318,1745344240737,-592.95871272,0.00021917,2]
[358659319,1745344240747,-500.0,0.00021917,2]
[358659320,1745344240757,-504.3851446,0.00021917,2]
[358659321,1745344240774,-505.82770341,0.00021917,2]
[358659322,1745344240785,-500.0,0.00021917,2]
[358659323,1745344240794,-160.0,0.00021917,2]
[358659324,1745344240804,-500.0,0.00021917,2]
[358659325,1745344240814,-500.0,0.00021917,2]
[358659326,1745344240824,-500.0,0.00021917,2]
[358659327,1745344240834,-500.0,0.00021917,2]
[358659328,1745344240845,-500.0,0.00021917,2]
[358659329,1745344240855,-500.0,0.00021917,2]
[358659330,1745344240865,-500.0,0.00021917,2]
[358659331,1745344240875,-955.39,0.00021917,2]
[358659332,1745344240885,-500.0,0.00021917,2]
[358659333,1745344240895,-500.0,0.00021917,2]
[358659334,1745344240905,-500.0,0.00021917,2]
[358659335,1745344240915,-502.78677908,0.00021917,2]
[358659336,1745344240925,-500.0,0.00021917,2]
[358659337,1745344240934,-240.98,0.00021917,2]
[358659338,1745344240944,-500.0,0.00021917,2]
[358659339,1745344240954,-500.0,0.00021917,2]
[358659340,1745344240964,-500.0,0.00021917,2]
[358659341,1745344240974,-500.0,0.00021917,2]
[358659342,1745344240984,-510.71071946,0.00021917,2]
[358659343,1745344240994,-500.0,0.00021917,2]
[358659344,1745344241004,-500.98956056,0.00021917,2]
[358659345,1745344241013,-500.0,0.00021917,2]
[358659346,1745344241024,-402.96631046,0.00021917,2]
[358659347,1745344241034,-500.0,0.00021917,2]
[358659348,1745344241044,-500.0,0.00021917,2]
[358659349,1745344241055,-500.0,0.00021917,2]
[358659350,1745344241064,-500.0,0.00021917,2]
[358659351,1745344241074,-500.0,0.00021917,2]
[358659352,1745344241084,-4026.03,0.00021917,2]
[358659353,1745344241094,-500.0,0.00021917,2]
[358659354,1745344241103,-500.0,0.00021917,2]
[358659355,1745344241113,-500.0,0.00021917,2]
[358659356,1745344241123,-500.0,0.00021917,2]
[358659357,1745344241133,-500.0,0.00021917,2]
[358659358,1745344241143,-500.0,0.00021917,2]
[358659359,1745344241153,-500.0,0.00021917,2]
[358659360,1745344241163,-500.0,0.00021917,2]
[358659361,1745344241172,-500.0,0.00021917,2]
[358659362,1745344241182,-5619.97,0.00021917,2]
[358659363,1745344241195,-500.0,0.00021917,2]
[358659364,1745344241204,-500.0,0.00021917,2]
[358659365,1745344241214,-500.0,0.00021917,2]
[358659366,1745344241224,-500.0,0.00021917,2]
[358659367,1745344241234,-500.0,0.00021917,2]
[358659368,1745344241244,-500.0,0.00021917,2]
[358659369,1745344241253,-500.0,0.00021917,2]
[358659370,1745344241263,-500.0,0.00021917,2]
[358659371,1745344241274,-500.0,0.00021917,2]
[358659372,1745344241284,-500.0,0.00021917,2]
[358659373,1745344241293,-500.0,0.00021917,2]
[358659374,1745344241303,-1719.92,0.00021917,2]
[358659375,1745344241313,-500.0,0.00021917,2]
[358659376,1745344241324,-500.0,0.00021917,2]
[358659377,1745344241333,-500.0,0.00021917,2]
[358659378,1745344241343,-1033.47,0.00021917,2]
[358659379,1745344241353,-500.0,0.00021917,2]
[358659380,1745344241362,-500.0,0.00021917,2]
[358659381,1745344241372,-500.0,0.00021917,2]
[358659382,1745344241381,-500.0,0.00021917,2]
[358659383,1745344241391,-851.41,0.00021917,2]
[358659384,1745344241401,-500.0,0.00021917,2]
[358659385,1745344241411,-500.0,0.00021917,2]
[358659386,1745344241420,-3313.27,0.00021917,2]
[358659387,1745344241431,-500.0,0.00021917,2]
[358659388,1745344241441,-500.0,0.00021917,2]
[358659389,1745344241451,-500.0,0.00021917,2]
[358659390,1745344241461,-500.0,0.00021917,2]
[358659391,1745344241472,-500.0,0.00021917,2]
[358659392,1745344241481,-500.0,0.00021917,2]
[358659393,1745344241491,-151.0,0.00021917,2]
[358659394,1745344241501,-500.0,0.00021917,2]
[358659395,1745344241512,-500.0,0.00021917,2]
[358659396,1745344241523,-500.0,0.00021917,2]
[358659397,1745344241533,-500.0,0.00021917,2]
[358659398,1745344241543,-1118.05,0.00021917,2]
[358659399,1745344241552,-500.0,0.00021917,2]
[358659400,1745344241562,-500.0,0.00021917,2]
[358659401,1745344241572,-1715.48,0.00021917,2]
[358659402,1745344241582,-500.0,0.00021917,2]
[358659403,1745344241592,-500.0,0.00021917,2]
[358659404,1745344241603,-500.0,0.00021917,2]
[358659405,1745344241613,-500.0,0.00021917,2]
[358659406,1745344241623,-500.0,0.00021917,2]
[358659407,1745344241633,-151.0,0.00021917,2]
[358659408,1745344241642,-500.0,0.00021917,2]
[358659409,1745344241652,-500.0,0.00021917,2]
[358659410,1745344241662,-191.148464,0.00021918,2]
[358659411,1745344241672,-500.0,0.0002192,2]
[358659412,1745344241681,-500.0,0.00021922,2]
[358659413,1745344241691,-500.0,0.00021944,2]
[358659414,1745344241701,-500.0,0.0002196,2]
[358659415,1745344241711,-500.0,0.00021967,2]
[358659416,1745344241721,-154.0,0.00022,2]
[358659417,1745344241730,-165.0,0.00022,2]
[358659418,1745344241740,-213.80587258,0.00022008,2]
[358659419,1745344241749,-194.80074453,0.00022028,2]
[358659420,1745344241759,-500.0,0.00022028,2]
[358659421,1745344241772,-1410.44,0.00022047,3]
[358659422,1745344241782,-705.22,0.00022047,3]
[358659423,1745344241791,-352.62,0.00022047,3]
[358659424,1745344241801,-22567.1,0.00022048,3]
[358659425,1745344241810,-11283.54,0.00022048,3]
[358659426,1745344241820,-5641.78,0.00022048,3]
[358659427,1745344241830,-468.65889025,0.00022052,2]
[358659428,1745344241839,-12570.97479393,0.00022053,3]
[358659429,1745344241849,-151.0,0.00022053,7]
[358659430,1745344241860,-151.0,0.00022053,7]
[358659431,1745344241869,-151.0,0.00022053,7]
[358659432,1745344241880,-203.265335,0.00022053,7]
[358659433,1745344241891,-203.265335,0.00022053,7]
[358659434,1745344241901,-151.0,0.00022053,7]
[358659435,1745344241912,-151.0,0.00022053,7]
[358659436,1745344241922,-275.672529,0.00022053,7]
[358659437,1745344241932,-275.672529,0.00022053,7]
[358659438,1745344241942,-266.798285,0.00022053,7]
[358659439,1745344241952,-266.798285,0.00022053,7]
[358659440,1745344241963,-1287.328482,0.00022053,7]
[358659441,1745344241974,-1287.328482,0.00022053,7]
[358659442,1745344241984,-151.0,0.00022053,7]
[358659443,1745344241993,-284.065625,0.00022053,2]
[358659444,1745344242004,-284.065625,0.00022053,2]
[358659445,1745344242013,-151.0,0.00022053,7]
[358659446,1745344242023,-151.0,0.00022053,7]
[358659447,1745344242033,-231.588604,0.00022053,7]
[358659448,1745344242043,-151.0,0.00022053,7]
[358659449,1745344242053,-151.0,0.00022053,7]
[358659450,1745344242063,-151.0,0.00022053,7]
[358659451,1745344242073,-2820.88,0.00022056,3]
[358659452,1745344242083,-151.0,0.0002215,7]
[358659453,1745344242092,-151.0,0.0002215,7]
[358659454,1745344242102,-1584.444665,0.0002215,2]
[358659455,1745344242112,-1584.444665,0.0002215,2]
[358659456,1745344242123,-151.0,0.0002215,7]
[358659457,1745344242133,-151.0,0.0002215,7]
[358659458,1745344242143,-320.663669,0.0002215,7]
[358659459,1745344242152,-151.0,0.0002215,7]
[358659460,1745344242162,-250.0,0.00022158,2]
[358659461,1745344242173,-1635.25945848,0.0002219,2]
[358659462,1745344242184,-2650.48421778,0.0002219,2]
[358659463,1745344242194,-151.0,0.00022191,7]
[358659464,1745344242205,-151.0,0.00022191,7]
[358659465,1745344242216,-151.0,0.00022191,7]
[358659466,1745344242225,-151.0,0.00022191,7]
[358659467,1745344242235,-151.0,0.00022191,7]
[358659468,1745344242244,-151.0,0.00022191,7]
[358659469,1745344242254,-151.0,0.00022191,7]
[358659470,1745344242264,-151.0,0.00022191,7]
[358659471,1745344242274,-227.049587,0.00022191,7]
[358659472,1745344242283,-227.049587,0.00022191,7]
[358659473,1745344242292,-151.0,0.00022191,7]
[358659474,1745344242302,-151.0,0.00022191,7]
[358659475,1745344242311,-151.0,0.00022191,7]
[358659476,1745344242320,-151.0,0.00022191,7]
[358659477,1745344242330,-493.10286948,0.00022191,2]
[358659478,1745344242339,-500.0,0.00022191,2]
[358659479,1745344242349,-500.0,0.00022191,2]
[358659480,1745344242359,-500.0,0.00022191,2]
[358659481,1745344242368,-500.0,0.00022191,2]
[358659482,1745344242378,-500.0,0.00022191,2]
[358659483,1745344242388,-500.0,0.00022191,2]
[358659484,1745344242397,-500.0,0.00022191,2]
[358659485,1745344242408,-500.0,0.00022191,2]
[358659486,1745344242417,-439.88509331,0.00022191,2]
[358659487,1745344242427,-436.69385746,0.00022191,2]
[358659488,1745344242437,-500.0,0.00022191,2]
[358659489,1745344242446,-500.0,0.00022191,2]
[358659490,1745344242455,-500.0,0.00022191,2]
[358659491,1745344242464,-500.0,0.00022191,2]
[358659492,1745344242474,-500.0,0.00022191,2]
[358659493,1745344242483,-500.0,0.00022191,2]
[358659494,1745344242493,-500.0,0.00022191,2]
[358659495,1745344242502,-627.86,0.00022191,2]
[358659496,1745344242511,-500.0,0.00022191,2]
[358659497,1745344242521,-178.23758236,0.00022191,2]
[358659498,1745344242530,-500.0,0.00022191,2]
[358659499,1745344242540,-500.0,0.00022191,2]
[358659500,1745344242550,-514.96835971,0.00022191,2]
[358659501,1745344242559,-506.67902245,0.00022191,2]
[358659502,1745344242568,-500.0,0.00022191,2]
[358659503,1745344242578,-502.87730235,0.00022191,2]
[358659504,1745344242588,-500.0,0.00022191,2]
[358659505,1745344242598,-516.49854394,0.00022191,2]
[358659506,1745344242607,-500.0,0.00022191,2]
[358659507,1745344242617,-955.39,0.00022191,2]
[358659508,1745344242627,-509.31683203,0.00022191,2]
[358659509,1745344242637,-500.0,0.00022191,2]
[358659510,1745344242646,-500.0,0.00022191,2]
[358659511,1745344242656,-500.0,0.00022191,2]
[358659512,1745344242665,-500.0,0.00022191,2]
[358659513,1745344242676,-500.0,0.00022191,2]
[358659514,1745344242687,-500.0,0.00022191,2]
[358659515,1745344242697,-500.0,0.00022191,2]
[358659516,1745344242708,-4026.03,0.00022191,2]
[358659517,1745344242720,-500.0,0.00022191,2]
[358659518,1745344242731,-283.31993235,0.00022191,2]
[358659519,1745344242742,-500.0,0.00022191,2]
[358659520,1745344242752,-500.0,0.00022191,2]
[358659521,1745344242762,-500.0,0.00022191,2]
[358659522,1745344242777,-500.0,0.00022191,2]
[358659523,1745344242787,-500.0,0.00022191,2]
[358659524,1745344242797,-500.0,0.00022191,2]
[358659525,1745344242807,-5619.97,0.00022191,2]
[358659526,1745344242816,-500.0,0.00022191,2]
[358659528,1745344242826,-500.0,0.00022191,2]
[358659529,1745344242835,-500.0,0.00022191,2]
[358659530,1745344242844,-500.0,0.00022191,2]
[358659531,1745344242854,-500.0,0.00022191,2]
[358659532,1745344242863,-500.0,0.00022191,2]
[358659534,1745344242873,-500.0,0.00022191,2]
[358659535,1745344242882,-500.0,0.00022191,2]
[358659536,1745344242891,-641.99587542,0.00022191,2]
[358659537,1745344242901,-500.0,0.00022191,2]
[358659538,1745344242910,-1719.92,0.00022191,2]
[358659539,1745344242920,-155.91063344,0.00022191,2]
[358659540,1745344242929,-500.0,0.00022191,2]
[358659542,1745344242940,-1033.47,0.00022191,2]
[358659545,1745344242950,-500.0,0.00022191,2]
[358659547,1745344242960,-500.0,0.00022191,2]
[358659549,1745344242969,-500.0,0.00022191,2]
[358659551,1745344242979,-500.0,0.00022191,2]
[358659553,1745344242989,-851.41,0.00022191,2]
[358659555,1745344242999,-500.0,0.00022191,2]
[358659557,1745344243009,-3313.27,0.00022191,2]
[358659559,1745344243019,-500.0,0.00022191,2]
[358659562,1745344243028,-500.0,0.00022191,2]
[358659563,1745344243039,-500.0,0.00022191,2]
[358659564,1745344243048,-500.0,0.00022191,2]
[358659565,1745344243058,-151.0,0.00022191,7]
[358659566,1745344243067,-500.0,0.00022191,2]
[358659567,1745344243077,-500.0,0.00022191,2]
[358659570,1745344243087,-500.0,0.00022191,2]
[358659571,1745344243097,-500.0,0.00022191,2]
[358659573,1745344243106,-1118.05,0.00022191,2]
[358659575,1745344243115,-500.0,0.00022191,2]
[358659576,1745344243125,-500.0,0.00022191,2]
[358659578,1745344243135,-1715.48,0.00022191,2]
[358659580,1745344243144,-500.0,0.00022191,2]
[358659581,1745344243154,-165.0,0.00022192,2]
[358659582,1745344243163,-736.663345,0.00022255,7]
[358659583,1745344243172,-736.663345,0.00022255,7]
[358659584,1745344243182,-729.16666667,0.00022255,7]
[358659585,1745344243191,-12570.97479393,0.00022255,7]
[358659586,1745344243202,-420.0,0.00022411,2]
[358659587,1745344243212,-420.0,0.00022412,2]
[358659588,1745344243222,-151.0,0.00022465,7]
[358659589,1745344243231,-151.0,0.00022465,7]
[358659590,1745344243241,-151.0,0.00022465,7]
[358659591,1745344243251,-155.685092,0.00022465,7]
[358659592,1745344243261,-151.0,0.00022465,7]
[358659594,1745344243273,-151.0,0.00022465,7]
[358659595,1745344243284,-151.0,0.00022465,7]
[358659596,1745344243295,-151.0,0.00022465,7]
[358659597,1745344243306,-151.0,0.00022465,7]
[358659598,1745344243317,-1584.444665,0.00022465,2]
[358659599,1745344243327,-1584.444665,0.00022465,2]
[358659600,1745344243337,-151.0,0.00022465,7]
[358659601,1745344243347,-151.0,0.00022465,7]
[358659603,1745344243356,-500.0,0.00022465,2]
[358659604,1745344243365,-611.03545155,0.00022465,2]
[358659605,1745344243375,-233.406233,0.00022465,7]
[358659606,1745344243385,-500.0,0.00022465,2]
[358659607,1745344243395,-500.0,0.00022465,2]
[358659608,1745344243404,-500.0,0.00022465,2]
[358659609,1745344243413,-500.0,0.00022465,2]
[358659610,1745344243423,-500.0,0.00022465,2]
[358659611,1745344243432,-500.0,0.00022465,2]
[358659612,1745344243442,-151.0,0.00022465,7]
[358659613,1745344243451,-203.265335,0.00022465,7]
[358659614,1745344243462,-203.265335,0.00022465,7]
[358659615,1745344243471,-164.614547,0.00022465,7]
[358659616,1745344243481,-500.0,0.00022465,2]
[358659617,1745344243490,-500.0,0.00022465,2]
[358659618,1745344243500,-500.0,0.00022465,2]
[358659619,1745344243509,-500.0,0.00022465,2]
[358659620,1745344243521,-627.86,0.00022465,2]
[358659621,1745344243531,-151.0,0.00022465,7]
[358659622,1745344243541,-275.672529,0.00022465,7]
[358659623,1745344243551,-275.672529,0.00022465,7]
[358659624,1745344243562,-500.0,0.00022465,2]
[358659625,1745344243571,-266.798285,0.00022465,7]
[358659626,1745344243581,-266.798285,0.00022465,7]
[358659627,1745344243591,-1287.328482,0.00022465,7]
[358659628,1745344243601,-1287.328482,0.00022465,7]
[358659629,1745344243610,-500.0,0.00022465,2]
[358659630,1745344243619,-500.0,0.00022465,2]
[358659631,1745344243629,-955.39,0.00022465,2]
[358659632,1745344243639,-151.0,0.00022465,7]
[358659633,1745344243648,-500.0,0.00022465,2]
[358659634,1745344243658,-500.0,0.00022465,2]
[358659635,1745344243667,-500.0,0.00022465,2]
[358659636,1745344243677,-500.0,0.00022465,2]
[358659637,1745344243687,-500.0,0.00022465,2]
[358659638,1745344243696,-500.0,0.00022465,2]
[358659640,1745344243706,-284.065625,0.00022465,2]
[358659641,1745344243830,-284.065625,0.00022465,2]
[358659642,1745344243866,-151.0,0.00022465,7]
[358659643,1745344243876,-4026.03,0.00022465,2]
[358659644,1745344243886,-500.0,0.00022465,2]
[358659645,1745344243896,-500.0,0.00022465,2]
[358659646,1745344243906,-500.0,0.00022465,2]
[358659647,1745344243915,-500.0,0.00022465,2]
[358659648,1745344243925,-500.0,0.00022465,2]
[358659649,1745344243935,-500.0,0.00022465,2]
[358659650,1745344243946,-500.0,0.00022465,2]
[358659651,1745344243957,-197.574342,0.00022465,7]
[358659652,1745344243968,-5619.97,0.00022465,2]
[358659653,1745344243979,-500.0,0.00022465,2]
[358659654,1745344243989,-421.23666537,0.00022465,2]
[358659655,1745344243999,-500.0,0.00022465,2]
[358659656,1745344244009,-500.0,0.00022465,2]
[358659657,1745344244020,-500.0,0.00022465,2]
[358659658,1745344244031,-500.0,0.00022465,2]
[358659659,1745344244041,-500.0,0.00022465,2]
[358659660,1745344244051,-500.0,0.00022465,2]
[358659661,1745344244063,-500.0,0.00022465,2]
[358659662,1745344244074,-1719.92,0.00022465,2]
[358659663,1745344244084,-500.0,0.00022465,2]
[358659664,1745344244094,-1033.47,0.00022465,2]
[358659665,1745344244104,-500.0,0.00022465,2]
[358659666,1745344244114,-151.0,0.00022465,7]
[358659667,1745344244124,-151.0,0.00022465,7]
[358659668,1745344244134,-500.0,0.00022465,2]
[358659669,1745344244144,-500.0,0.00022465,2]
[358659670,1745344244154,-500.0,0.00022465,2]
[358659671,1745344244164,-851.41,0.00022465,2]
[358659672,1745344244174,-500.0,0.00022465,2]
[358659673,1745344244184,-3313.27,0.00022465,2]
[358659674,1745344244194,-500.0,0.00022465,2]
[358659675,1745344244204,-500.0,0.00022465,2]
[358659676,1745344244215,-500.0,0.00022465,2]
[358659677,1745344244226,-500.0,0.00022465,2]
[358659678,1745344244236,-500.0,0.00022465,2]
[358659679,1745344244246,-500.0,0.00022465,2]
[358659680,1745344244256,-500.0,0.00022465,2]
[358659681,1745344244266,-500.0,0.00022465,2]
[358659682,1745344244277,-1118.05,0.00022465,2]
[358659683,1745344244286,-500.0,0.00022465,2]
[358659684,1745344244296,-500.0,0.00022465,2]
[358659685,1745344244305,-1715.48,0.00022465,2]
[358659686,1745344244315,-500.0,0.00022465,2]
[358659687,1745344244325,-320.663669,0.00022511,7]
[358659688,1745344244335,-320.663669,0.00022511,7]
[358659689,1745344244344,-160.0,0.0002253,2]
[358659690,1745344244354,-160.0,0.00022531,2]
[358659691,1745344244364,-160.0,0.00022531,2]
[358659692,1745344244373,-160.0,0.00022531,2]
[358659693,1745344244384,-160.0,0.00022531,2]
[358659694,1745344244394,-729.16666667,0.00022531,2]
[358659695,1745344244404,-12570.97479393,0.00022531,2]
[358659696,1745344244414,-160.0,0.00022531,2]
[358659697,1745344244424,-420.73667954,0.00022531,2]
[358659698,1745344244434,-151.0,0.00022531,7]
[358659699,1745344244444,-499.999999,0.00022727,2]
[358659700,1745344244454,-500.0,0.00022739,2]
[358659701,1745344244463,-500.0,0.00022739,2]
[358659702,1745344244473,-175.37,0.00022739,2]
[358659703,1745344244484,-500.0,0.00022739,2]
[358659704,1745344244493,-500.0,0.00022739,2]
[358659705,1745344244503,-500.0,0.00022739,2]
[358659706,1745344244512,-500.0,0.00022739,2]
[358659707,1745344244523,-500.0,0.00022739,2]
[358659708,1745344244533,-627.86,0.00022739,2]
[358659709,1745344244543,-500.0,0.00022739,2]
[358659710,1745344244553,-500.0,0.00022739,2]
[358659711,1745344244563,-500.0,0.00022739,2]
[358659712,1745344244573,-955.39,0.00022739,2]
[358659713,1745344244583,-500.0,0.00022739,2]
[358659714,1745344244594,-500.0,0.00022739,2]
[358659715,1745344244603,-500.0,0.00022739,2]
[358659716,1745344244613,-500.0,0.00022739,2]
[358659717,1745344244623,-500.0,0.00022739,2]
[358659718,1745344244632,-500.0,0.00022739,2]
[358659719,1745344244642,-4026.03,0.00022739,2]
[358659720,1745344244652,-500.0,0.00022739,2]
[358659721,1745344244662,-500.0,0.00022739,2]
[358659722,1745344244672,-315.37134475,0.00022739,2]
[358659723,1745344244682,-500.0,0.00022739,2]
[358659724,1745344244691,-184.21934752,0.00022739,2]
[358659725,1745344244701,-422.49625108,0.00022739,2]
[358659726,1745344244711,-5619.97,0.00022739,2]
[358659727,1745344244722,-200.68045778,0.00022739,2]
[358659728,1745344244731,-500.0,0.00022739,2]
[358659729,1745344244741,-555.27642363,0.00022739,2]
[358659730,1745344244751,-500.0,0.00022739,2]
[358659731,1745344244761,-500.0,0.00022739,2]
[358659732,1745344244775,-500.0,0.00022739,2]
[358659733,1745344244785,-500.0,0.00022739,2]
[358659734,1745344244796,-1719.92,0.00022739,2]
[358659735,1745344244805,-500.0,0.00022739,2]
[358659736,1745344244817,-1033.47,0.00022739,2]
[358659737,1745344244827,-500.0,0.00022739,2]
[358659738,1745344244836,-500.0,0.00022739,2]
[358659739,1745344244846,-500.0,0.00022739,2]
[358659740,1745344244857,-500.0,0.00022739,2]
[358659741,1745344244866,-851.41,0.00022739,2]
[358659742,1745344244876,-500.0,0.00022739,2]
[358659743,1745344244886,-3313.27,0.00022739,2]
[358659744,1745344244895,-500.0,0.00022739,2]
[358659745,1745344244906,-500.0,0.00022739,2]
[358659746,1745344244917,-500.0,0.00022739,2]
[358659747,1745344244927,-500.0,0.00022739,2]
[358659748,1745344244938,-500.0,0.00022739,2]
[358659749,1745344244949,-500.0,0.00022739,2]
[358659750,1745344244959,-500.0,0.00022739,2]
[358659751,1745344244970,-500.0,0.00022739,2]
[358659752,1745344244980,-1118.05,0.00022739,2]
[358659753,1745344244990,-500.0,0.00022739,2]
[358659754,1745344245000,-500.0,0.00022739,2]
[358659755,1745344245010,-1715.48,0.00022739,2]
[358659756,1745344245021,-500.0,0.00022739,2]
[358659757,1745344245030,-2156.37230128,0.0002276,2]
[358659758,1745344245040,-160.0,0.00023,3]
[358659759,1745344245050,-324.98450645,0.00023,2]
[358659760,1745344245060,-160.0,0.00023,3]
[358659761,1745344245070,-420.73667954,0.00023,3]
[358659762,1745344245080,-276.24396633,0.00023013,2]
[358659763,1745344245089,-240.88,0.00023013,2]
[358659764,1745344245099,-500.0,0.00023013,2]
[358659765,1745344245108,-500.0,0.00023013,2]
[358659766,1745344245118,-500.0,0.00023013,2]
[358659767,1745344245128,-500.0,0.00023013,2]
[358659768,1745344245138,-500.0,0.00023013,2]
[358659769,1745344245148,-627.86,0.00023013,2]
[358659770,1745344245158,-500.0,0.00023013,2]
[358659771,1745344245167,-500.0,0.00023013,2]
[358659772,1745344245177,-500.0,0.00023013,2]
[358659773,1745344245188,-955.39,0.00023013,2]
[358659774,1745344245199,-500.0,0.00023013,2]
[358659775,1745344245208,-500.0,0.00023013,2]
[358659776,1745344245219,-500.0,0.00023013,2]
[358659777,1745344245228,-500.0,0.00023013,2]
[358659778,1745344245239,-167.65346591,0.00023013,2]
[358659779,1745344245250,-500.0,0.00023013,2]
[358659780,1745344245260,-4026.03,0.00023013,2]
[358659781,1745344245271,-500.0,0.00023013,2]
[358659782,1745344245282,-500.0,0.00023013,2]
[358659783,1745344245291,-500.0,0.00023013,2]
[358659784,1745344245301,-5619.97,0.00023013,2]
[358659785,1745344245310,-500.0,0.00023013,2]
[358659786,1745344245320,-500.0,0.00023013,2]
[358659787,1745344245330,-500.0,0.00023013,2]
[358659788,1745344245340,-500.0,0.00023013,2]
[358659789,1745344245351,-500.0,0.00023013,2]
[358659790,1745344245361,-1719.92,0.00023013,2]
[358659791,1745344245371,-500.0,0.00023013,2]
[358659792,1745344245380,-1033.47,0.00023013,2]
[358659793,1745344245389,-500.0,0.00023013,2]
[358659794,1745344245399,-151.0,0.00023013,7]
[358659795,1745344245410,-500.0,0.00023013,2]